{"text_format":"1","workbook":"xlsx","n_sheets":28,"sheets":["Info","Daten","Mischfördersatz","G01","G02","G03","G04","G05","G06","G07","G08","G09","G10","G11","G12","G13","G14","G15","G16","G17","G18","G19","G20","G21","G22","G23","G24","G25"],"not_rendered":{"charts":0,"images":2,"macros":1,"external_links":0,"defined_names":6,"comments":0,"pivot_tables":0},"unopened":[],"bounds":{"document_bytes":16777216,"sheet_cells":100000,"rows_first":2000,"rows_last":500,"rows_between":2000,"halvings":0,"cell_chars":16384,"cell_head_chars":4096},"cells_cut":0,"cells_raw":0,"read":"whole","date_system":"1900"}

{"sheet":"Info","index":0,"n_rows":29,"n_cols":5,"rows_kept":29,"cut":false,"hidden":false,"merged":[[26,1,26,5],[24,2,25,5],[9,2,9,5],[11,2,11,5],[13,2,13,5],[17,1,17,5]]}
[]
[null,"Version Okt. 2021"]
[]
[null,"Hilfe zum Ausfüllen der Formulare"]
[]
[null,"Alle Kostenangaben sind ohne Mehrwertsteuer (ohne Ust.) anzugeben. "]
[]
[null,"Welche Felder sind auszufüllen ?"]
[]
[null,null,"Die grün hinterlegten Felder sind zum Ausfüllen."]
[]
[null,null,"Die blauen Felder sind durch Auswahllisten (Dropdown) zu befüllen. Hier gibt es vorgeschlagene Werte/Texte. Damit die Auswahl funktioniert, bitte unbedingt Zelle markieren."]
[]
[null,null,"Die gelb hinterlegten Felder werden automatisch berechnet oder übernommen."]
[]
[null,"Welches Blatt wird als erstes ausgefüllt ?"]
[]
[null,"Da viele Daten automatisch übernommen werden, ist folgende Reihenfolge beim Ausfüllen der einzelnen Tabellenblätter sinnvollerweise einzuhalten:"]
[null,"1.","Daten [Daten]"]
[null,"2.","Nachweis Mindestgebühr Musterhaus Steiermark"]
[null,"3.","Mischfördersatz"]
[]
[null,"zu 1.","Daten [Daten]"]
[]
[null,null,"Die Anlagenart ist unbedingt auszuwählen!"]
[]
[null,"Die Mindestgebühr für das Musterhaus Steiermark beträgt, gemäß den Förderungsrichtlinien Siedlungswasserwirtschaft und den Durchführungsbestimmungen, für:"]
[null,"Wasserversorgungsanlagen",null,1.4,"Euro pro m³ (ohne Ust.)"]
[null,"Abwasserbeseitungsanlagen",null,2.1,"Euro pro m³ (ohne Ust.)"]

{"sheet":"Daten","index":1,"n_rows":13,"n_cols":4,"rows_kept":13,"cut":false,"hidden":false,"merged":[[2,1,2,8],[4,3,4,8],[12,3,12,4],[8,3,8,8],[10,3,10,4]]}
[null,{"$f":"Info!B2","v":"Version Okt. 2021"}]
[null,"Daten"]
[]
[null,null,"Förderungswerber"]
[null,null,"Name"]
[]
[null,null,"Bauabschnittsdaten"]
[null,"WVA","Anlagenart","ABA"]
[null,"ABA","Kurzbezeichnung  "]
[null,null,"Bauabschnitt  "]
[null,null,"förderfähige Kosten"]
[]
[null,null,"Antragsdatum"]

{"sheet":"Mischfördersatz","index":2,"n_rows":47,"n_cols":15,"rows_kept":47,"cut":false,"hidden":false,"merged":[[16,3,16,4],[1,1,1,2],[2,1,2,2],[2,3,2,14],[1,3,1,14],[16,6,16,7],[12,2,12,3],[10,2,10,3],[11,2,11,3],[14,2,14,3],[9,6,9,7],[13,2,13,3],[16,9,16,10]]}
[null,{"$f":"Info!B2","v":"Version Okt. 2021"}]
[null,"Förderungswerber",null,{"$f":"Daten!D5","v":0}]
[null,"Bauvorhaben",null,{"$f":"Daten!D8&\" BA \"&Daten!D10&\", \"&Daten!D9","v":"ABA BA , "}]
[]
[null,"Berechnung Mischfördersatz"]
[null,"(alle Beträge ohne Ust.)"]
[]
[null,{"$f":"\"Mindestgebühr für \"&Daten!D8&\" ist\"","v":"Mindestgebühr für ABA ist"},{"$f":"IF(Daten!D8=\"WVA\",Info!D28,IF(Daten!D8=\"ABA\",Info!D29,\"\"))","v":2.1},"pro m3"]
[]
[null,null,null,null,"Katalogskosten",null,"Nebenkosten aufgeteilt"]
[null,null,"Kosten Errichtung ",null,null,null,{"$f":"IK_Er/(IK_Er+IK_Re)","v":{"$error":"#DIV/0!"}},{"$f":"IK_Er+E13*G11","v":{"$error":"#DIV/0!"}}]
[null,null,"Kosten Reinvestition ",null,null,null,{"$f":"1-G11","v":{"$error":"#DIV/0!"}},{"$f":"E15-E14-H11","v":{"$error":"#DIV/0!"}}]
[null,null,"Nebenkosten "]
[null,null,"Kosten LIS"]
[null,null,"Förderbare Kosten ",null,{"$f":"SUM(D11:E14)","v":0}]
[]
[null,"Gemeinde","Gebühr ","Gemeindeanteil an Kosten Errichtung",null,"Landes-Fördersatz\nErrichtung","Gemeindeanteil an Kosten Reinvestition",null,"Landes-Fördersatz\nReinvest.","Gemeindeanteil an Kosten LIS",null,"Landes-Fördersatz\nLIS","förderfähige  \nKosten am BA (inkl. Nebenkosten)","Misch-fördersatz der Gemeinde","Nominale Landesbeitrag"]
[null,{"$f":"'G01'!F$4","v":"G01"},{"$f":"'G01'!L$23","v":0},null,{"$f":"D18*IK_Er_Nk","v":{"$error":"#DIV/0!"}},null,null,{"$f":"G18*IK_Re_Nk","v":{"$error":"#DIV/0!"}},null,null,{"$f":"J18*IK_LIS","v":0},0.1,{"$f":"IF(C18>=$C$8,IK_Er_Nk*D18,0)+IF(C18>=$C$8,IK_Re_Nk*G18,0)+K18","v":0},{"$f":"IF(M18>0,((E18*F18)+(H18*I18)+(K18*L18))/(E18+H18+K18),0)","v":0},{"$f":"M18*N18","v":0}]
[null,{"$f":"'G02'!F$4","v":"G02"},{"$f":"'G02'!L$23","v":0},null,{"$error":"#DIV/0!"},null,null,{"$error":"#DIV/0!"},null,null,0,{"$f":"IF(K19>0,$L$18,)","v":0},0,{"$f":"IF(M19>0,((E19*F19)+(H19*I19)+(K19*L19))/(E19+H19+K19),0)","v":0},0]
[null,{"$f":"'G03'!F$4","v":"G03"},{"$f":"'G03'!L$23","v":0},null,{"$error":"#DIV/0!"},null,null,{"$error":"#DIV/0!"},null,null,0,{"$f":"IF(K20>0,$L$18,)","v":0},0,{"$f":"IF(M20>0,((E20*F20)+(H20*I20)+(K20*L20))/(E20+H20+K20),0)","v":0},0]
[null,{"$f":"'G04'!F$4","v":"G04"},{"$f":"'G04'!L$23","v":0},null,{"$error":"#DIV/0!"},null,null,{"$error":"#DIV/0!"},null,null,0,0,0,{"$f":"IF(M21>0,((E21*F21)+(H21*I21)+(K21*L21))/(E21+H21+K21),0)","v":0},0]
[null,{"$f":"'G05'!F$4","v":"G05"},{"$f":"'G05'!L$23","v":0},null,{"$error":"#DIV/0!"},null,null,{"$error":"#DIV/0!"},null,null,0,0,0,0,0]
[null,{"$f":"'G06'!F$4","v":"G06"},{"$f":"'G06'!L$23","v":0},null,{"$error":"#DIV/0!"},null,null,{"$error":"#DIV/0!"},null,null,0,0,0,0,0]
[null,{"$f":"'G07'!F$4","v":"G07"},{"$f":"'G07'!L$23","v":0},null,{"$error":"#DIV/0!"},null,null,{"$error":"#DIV/0!"},null,null,0,0,0,0,0]
[null,{"$f":"'G08'!F$4","v":"G08"},{"$f":"'G08'!L$23","v":0},null,{"$error":"#DIV/0!"},null,null,{"$error":"#DIV/0!"},null,null,0,0,0,0,0]
[null,{"$f":"'G09'!F$4","v":"G09"},{"$f":"'G09'!L$23","v":0},null,{"$error":"#DIV/0!"},null,null,{"$error":"#DIV/0!"},null,null,0,0,0,0,0]
[null,{"$f":"'G10'!F$4","v":"G10"},{"$f":"'G10'!L$23","v":0},null,{"$error":"#DIV/0!"},null,null,{"$error":"#DIV/0!"},null,null,0,0,0,0,0]
[null,{"$f":"'G11'!F$4","v":"G11"},{"$f":"'G11'!L$23","v":0},null,{"$error":"#DIV/0!"},null,null,{"$error":"#DIV/0!"},null,null,0,0,0,0,0]
[null,{"$f":"'G12'!F$4","v":"G12"},{"$f":"'G12'!L$23","v":0},null,{"$error":"#DIV/0!"},null,null,{"$error":"#DIV/0!"},null,null,0,0,0,0,0]
[null,{"$f":"'G13'!F$4","v":"G13"},{"$f":"'G13'!L$23","v":0},null,{"$error":"#DIV/0!"},null,null,{"$error":"#DIV/0!"},null,null,0,0,0,0,0]
[null,{"$f":"'G14'!F$4","v":"G14"},{"$f":"'G14'!L$23","v":0},null,{"$error":"#DIV/0!"},null,null,{"$error":"#DIV/0!"},null,null,0,0,0,0,0]
[null,{"$f":"'G15'!F$4","v":"G15"},{"$f":"'G15'!L$23","v":0},null,{"$error":"#DIV/0!"},null,null,{"$error":"#DIV/0!"},null,null,0,0,0,0,0]
[null,{"$f":"'G16'!F$4","v":"G16"},{"$f":"'G16'!L$23","v":0},null,{"$error":"#DIV/0!"},null,null,{"$error":"#DIV/0!"},null,null,0,0,0,0,0]
[null,{"$f":"'G17'!F$4","v":"G17"},{"$f":"'G17'!L$23","v":0},null,{"$error":"#DIV/0!"},null,null,{"$error":"#DIV/0!"},null,null,0,0,0,0,0]
[null,{"$f":"'G18'!F$4","v":"G18"},{"$f":"'G18'!L$23","v":0},null,{"$error":"#DIV/0!"},null,null,{"$error":"#DIV/0!"},null,null,0,0,0,0,0]
[null,{"$f":"'G19'!F$4","v":"G19"},{"$f":"'G19'!L$23","v":0},null,{"$error":"#DIV/0!"},null,null,{"$error":"#DIV/0!"},null,null,0,0,0,0,0]
[null,{"$f":"'G20'!F$4","v":"G20"},{"$f":"'G20'!L$23","v":0},null,{"$error":"#DIV/0!"},null,null,{"$error":"#DIV/0!"},null,null,0,0,0,0,0]
[null,{"$f":"'G21'!F$4","v":"G21"},{"$f":"'G21'!L$23","v":0},null,{"$error":"#DIV/0!"},null,null,{"$error":"#DIV/0!"},null,null,0,0,0,0,0]
[null,{"$f":"'G22'!F$4","v":"G22"},{"$f":"'G22'!L$23","v":0},null,{"$error":"#DIV/0!"},null,null,{"$error":"#DIV/0!"},null,null,0,0,0,0,0]
[null,{"$f":"'G23'!F$4","v":"G23"},{"$f":"'G23'!L$23","v":0},null,{"$error":"#DIV/0!"},null,null,{"$error":"#DIV/0!"},null,null,0,0,0,0,0]
[null,{"$f":"'G24'!F$4","v":"G24"},{"$f":"'G24'!L$23","v":0},null,{"$error":"#DIV/0!"},null,null,{"$error":"#DIV/0!"},null,null,0,0,0,0,0]
[null,{"$f":"'G25'!F$4","v":"G25"},{"$f":"'G25'!L$23","v":0},null,{"$error":"#DIV/0!"},null,null,{"$error":"#DIV/0!"},null,null,0,0,0,0,0]
[]
[null,"Summe ",null,{"$f":"SUM(D18:D42)","v":0},{"$f":"SUM(E18:E43)","v":{"$error":"#DIV/0!"}},null,{"$f":"SUM(G18:G42)","v":0},{"$f":"SUM(H18:H43)","v":{"$error":"#DIV/0!"}},null,{"$f":"SUM(J18:J42)","v":0},{"$f":"SUM(K18:K43)","v":0},null,{"$f":"SUM(M18:M42)","v":0}]
[null,"Kontrolle (soll Null sein):",null,{"$f":"1-D44","v":1},{"$f":"SUM(E18:E42)-IK_Er_Nk","v":{"$error":"#DIV/0!"}},null,{"$f":"1-G44","v":1},{"$f":"SUM(H18:H42)-IK_Re_Nk","v":{"$error":"#DIV/0!"}},null,{"$f":"1-J44","v":1},{"$f":"SUM(K18:K42)-IK_LIS","v":0}]
[null,null,null,null,null,null,null,null,null,null,null,null,null,"Mischfördersatz:",{"$f":"O47/(IK_Er_Nk+IK_Re_Nk+IK_LIS)","v":{"$error":"#DIV/0!"}}]
[null,null,null,null,null,null,null,null,null,null,null,null,null,"Nominale Landesbeitrag:",{"$f":"SUM(O18:O42)","v":0}]

{"sheet":"G01","index":3,"n_rows":23,"n_cols":12,"rows_kept":23,"cut":false,"hidden":false,"merged":[[21,1,21,10],[21,11,21,14],[22,1,22,10],[22,11,22,14],[23,11,23,14],[19,1,19,4],[19,6,19,7],[19,8,19,10],[19,11,19,14],[20,1,20,4],[20,5,20,14],[17,1,17,4],[17,6,17,7],[17,8,17,10],[17,11,17,14],[18,1,18,4],[18,6,18,7],[18,8,18,10],[18,11,18,14],[15,1,15,4],[15,6,15,7],[15,8,15,10],[15,11,15,14],[16,1,16,4],[16,6,16,7],[16,8,16,10],[16,11,16,14],[13,1,13,4],[13,6,13,7],[13,8,13,10],[13,11,13,14],[14,1,14,4],[14,6,14,7],[14,8,14,10],[14,11,14,14],[3,12,3,14],[11,1,12,4],[11,5,12,5],[11,6,12,7],[11,8,12,10],[11,11,12,14],[3,5,3,7]]}
[null,{"$f":"Info!B2","v":"Version Okt. 2021"}]
[null,"Förderungswerber",null,null,null,{"$f":"Daten!D5","v":0}]
[null,"Bauvorhaben",null,null,null,{"$f":"Daten!D8&\" BA \"&Daten!D10&\", \"&Daten!D9","v":"ABA BA , "}]
[null,"Gemeinde",null,null,null,"G01",null,null,null,null,null,"Gemeindekennzahl "]
[]
[null,"Nachweis Mindestgebühr Musterhaus Steiermark"]
[null,"(alle Beträge ohne Ust.)"]
[]
[null,"Zum Zeitpunkt des Antrages vom",null,null,null,null,{"$f":"Daten!D13","v":"00:00:00"}]
[null,"gültige Gebührenordnung vom"]
[]
[null,"Angaben zum Musterhaus",null,null,null,"Wert","Einheit",null,"Einheitssatz",null,null,"Gebühr"]
[]
[null,"3 Personen",null,null,null,3,"E",null,null,null,null,{"$f":"F14*I14","v":0}]
[null,"Wasserverbrauch von 120 Liter pro Person und Tag",null,null,null,131.5,"m³/a",null,null,null,null,0]
[null,"WC / Bäder",null,null,null,null,"Stk.",null,null,null,null,0]
[null,"Berechnungsfläche",null,null,null,270,"m²",null,null,null,null,0]
[null,"Regenwasserentsorgung",null,null,null,null,null,null,null,null,null,0]
[null,"Grundstücksfläche",null,null,null,600,"m²",null,null,null,null,0]
[null,"Grundgebühr bzw.\nBereitstellungsgebühr",null,null,null,null,null,null,null,null,null,0]
[null,"Anmerkungen zur Herleitung allfälliger Durchschnittssätze für Einheitssätze"]
[null,"Laufende Gebührenbelastung eines Musterhauses pro Jahr",null,null,null,null,null,null,null,null,null,{"$f":"SUM(L14:N20)","v":0}]
[null,"Gebühren eines Musterhauses pro m3",null,null,null,null,null,null,null,null,null,{"$f":"L22/F15","v":0}]

{"sheet":"G02","index":4,"n_rows":23,"n_cols":12,"rows_kept":23,"cut":false,"hidden":false,"merged":[[21,1,21,10],[21,11,21,14],[22,1,22,10],[22,11,22,14],[23,11,23,14],[19,1,19,4],[19,6,19,7],[19,8,19,10],[19,11,19,14],[20,1,20,4],[20,5,20,14],[17,1,17,4],[17,6,17,7],[17,8,17,10],[17,11,17,14],[18,1,18,4],[18,6,18,7],[18,8,18,10],[18,11,18,14],[15,1,15,4],[15,6,15,7],[15,8,15,10],[15,11,15,14],[16,1,16,4],[16,6,16,7],[16,8,16,10],[16,11,16,14],[13,1,13,4],[13,6,13,7],[13,8,13,10],[13,11,13,14],[14,1,14,4],[14,6,14,7],[14,8,14,10],[14,11,14,14],[3,12,3,14],[11,1,12,4],[11,5,12,5],[11,6,12,7],[11,8,12,10],[11,11,12,14],[3,5,3,7]]}
[null,{"$f":"Info!B2","v":"Version Okt. 2021"}]
[null,"Förderungswerber",null,null,null,{"$f":"Daten!D5","v":0}]
[null,"Bauvorhaben",null,null,null,{"$f":"Daten!D8&\" BA \"&Daten!D10&\", \"&Daten!D9","v":"ABA BA , "}]
[null,"Gemeinde",null,null,null,"G02",null,null,null,null,null,"Gemeindekennzahl "]
[]
[null,"Nachweis Mindestgebühr Musterhaus Steiermark"]
[null,"(alle Beträge ohne Ust.)"]
[]
[null,"Zum Zeitpunkt des Antrages vom",null,null,null,null,{"$f":"Daten!D13","v":"00:00:00"}]
[null,"gültige Gebührenordnung vom"]
[]
[null,"Angaben zum Musterhaus",null,null,null,"Wert","Einheit",null,"Einheitssatz",null,null,"Gebühr"]
[]
[null,"3 Personen",null,null,null,3,"E",null,null,null,null,{"$f":"F14*I14","v":0}]
[null,"Wasserverbrauch von 120 Liter pro Person und Tag",null,null,null,131.5,"m³/a",null,null,null,null,0]
[null,"WC / Bäder",null,null,null,null,"Stk.",null,null,null,null,0]
[null,"Berechnungsfläche",null,null,null,270,"m²",null,null,null,null,0]
[null,"Regenwasserentsorgung",null,null,null,null,null,null,null,null,null,0]
[null,"Grundstücksfläche",null,null,null,600,"m²",null,null,null,null,0]
[null,"Grundgebühr bzw.\nBereitstellungsgebühr",null,null,null,null,null,null,null,null,null,0]
[null,"Anmerkungen zur Herleitung allfälliger Durchschnittssätze für Einheitssätze"]
[null,"Laufende Gebührenbelastung eines Musterhauses pro Jahr",null,null,null,null,null,null,null,null,null,{"$f":"SUM(L14:N20)","v":0}]
[null,"Gebühren eines Musterhauses pro m3",null,null,null,null,null,null,null,null,null,{"$f":"L22/F15","v":0}]

{"sheet":"G03","index":5,"n_rows":23,"n_cols":12,"rows_kept":23,"cut":false,"hidden":false,"merged":[[21,1,21,10],[21,11,21,14],[22,1,22,10],[22,11,22,14],[23,11,23,14],[19,1,19,4],[19,6,19,7],[19,8,19,10],[19,11,19,14],[20,1,20,4],[20,5,20,14],[17,1,17,4],[17,6,17,7],[17,8,17,10],[17,11,17,14],[18,1,18,4],[18,6,18,7],[18,8,18,10],[18,11,18,14],[15,1,15,4],[15,6,15,7],[15,8,15,10],[15,11,15,14],[16,1,16,4],[16,6,16,7],[16,8,16,10],[16,11,16,14],[13,1,13,4],[13,6,13,7],[13,8,13,10],[13,11,13,14],[14,1,14,4],[14,6,14,7],[14,8,14,10],[14,11,14,14],[3,12,3,14],[11,1,12,4],[11,5,12,5],[11,6,12,7],[11,8,12,10],[11,11,12,14],[3,5,3,7]]}
[null,{"$f":"Info!B2","v":"Version Okt. 2021"}]
[null,"Förderungswerber",null,null,null,{"$f":"Daten!D5","v":0}]
[null,"Bauvorhaben",null,null,null,{"$f":"Daten!D8&\" BA \"&Daten!D10&\", \"&Daten!D9","v":"ABA BA , "}]
[null,"Gemeinde",null,null,null,"G03",null,null,null,null,null,"Gemeindekennzahl "]
[]
[null,"Nachweis Mindestgebühr Musterhaus Steiermark"]
[null,"(alle Beträge ohne Ust.)"]
[]
[null,"Zum Zeitpunkt des Antrages vom",null,null,null,null,{"$f":"Daten!D13","v":"00:00:00"}]
[null,"gültige Gebührenordnung vom"]
[]
[null,"Angaben zum Musterhaus",null,null,null,"Wert","Einheit",null,"Einheitssatz",null,null,"Gebühr"]
[]
[null,"3 Personen",null,null,null,3,"E",null,null,null,null,{"$f":"F14*I14","v":0}]
[null,"Wasserverbrauch von 120 Liter pro Person und Tag",null,null,null,131.5,"m³/a",null,null,null,null,0]
[null,"WC / Bäder",null,null,null,null,"Stk.",null,null,null,null,0]
[null,"Berechnungsfläche",null,null,null,270,"m²",null,null,null,null,0]
[null,"Regenwasserentsorgung",null,null,null,null,null,null,null,null,null,0]
[null,"Grundstücksfläche",null,null,null,600,"m²",null,null,null,null,0]
[null,"Grundgebühr bzw.\nBereitstellungsgebühr",null,null,null,null,null,null,null,null,null,0]
[null,"Anmerkungen zur Herleitung allfälliger Durchschnittssätze für Einheitssätze"]
[null,"Laufende Gebührenbelastung eines Musterhauses pro Jahr",null,null,null,null,null,null,null,null,null,{"$f":"SUM(L14:N20)","v":0}]
[null,"Gebühren eines Musterhauses pro m3",null,null,null,null,null,null,null,null,null,{"$f":"L22/F15","v":0}]

{"sheet":"G04","index":6,"n_rows":23,"n_cols":12,"rows_kept":23,"cut":false,"hidden":false,"merged":[[21,1,21,10],[21,11,21,14],[22,1,22,10],[22,11,22,14],[23,11,23,14],[19,1,19,4],[19,6,19,7],[19,8,19,10],[19,11,19,14],[20,1,20,4],[20,5,20,14],[17,1,17,4],[17,6,17,7],[17,8,17,10],[17,11,17,14],[18,1,18,4],[18,6,18,7],[18,8,18,10],[18,11,18,14],[15,1,15,4],[15,6,15,7],[15,8,15,10],[15,11,15,14],[16,1,16,4],[16,6,16,7],[16,8,16,10],[16,11,16,14],[13,1,13,4],[13,6,13,7],[13,8,13,10],[13,11,13,14],[14,1,14,4],[14,6,14,7],[14,8,14,10],[14,11,14,14],[3,12,3,14],[11,1,12,4],[11,5,12,5],[11,6,12,7],[11,8,12,10],[11,11,12,14],[3,5,3,7]]}
[null,{"$f":"Info!B2","v":"Version Okt. 2021"}]
[null,"Förderungswerber",null,null,null,{"$f":"Daten!D5","v":0}]
[null,"Bauvorhaben",null,null,null,{"$f":"Daten!D8&\" BA \"&Daten!D10&\", \"&Daten!D9","v":"ABA BA , "}]
[null,"Gemeinde",null,null,null,"G04",null,null,null,null,null,"Gemeindekennzahl "]
[]
[null,"Nachweis Mindestgebühr Musterhaus Steiermark"]
[null,"(alle Beträge ohne Ust.)"]
[]
[null,"Zum Zeitpunkt des Antrages vom",null,null,null,null,{"$f":"Daten!D13","v":"00:00:00"}]
[null,"gültige Gebührenordnung vom"]
[]
[null,"Angaben zum Musterhaus",null,null,null,"Wert","Einheit",null,"Einheitssatz",null,null,"Gebühr"]
[]
[null,"3 Personen",null,null,null,3,"E",null,null,null,null,{"$f":"F14*I14","v":0}]
[null,"Wasserverbrauch von 120 Liter pro Person und Tag",null,null,null,131.5,"m³/a",null,null,null,null,0]
[null,"WC / Bäder",null,null,null,null,"Stk.",null,null,null,null,0]
[null,"Berechnungsfläche",null,null,null,270,"m²",null,null,null,null,0]
[null,"Regenwasserentsorgung",null,null,null,null,null,null,null,null,null,0]
[null,"Grundstücksfläche",null,null,null,600,"m²",null,null,null,null,0]
[null,"Grundgebühr bzw.\nBereitstellungsgebühr",null,null,null,null,null,null,null,null,null,0]
[null,"Anmerkungen zur Herleitung allfälliger Durchschnittssätze für Einheitssätze"]
[null,"Laufende Gebührenbelastung eines Musterhauses pro Jahr",null,null,null,null,null,null,null,null,null,{"$f":"SUM(L14:N20)","v":0}]
[null,"Gebühren eines Musterhauses pro m3",null,null,null,null,null,null,null,null,null,{"$f":"L22/F15","v":0}]

{"sheet":"G05","index":7,"n_rows":23,"n_cols":12,"rows_kept":23,"cut":false,"hidden":false,"merged":[[21,1,21,10],[21,11,21,14],[22,1,22,10],[22,11,22,14],[23,11,23,14],[19,1,19,4],[19,6,19,7],[19,8,19,10],[19,11,19,14],[20,1,20,4],[20,5,20,14],[17,1,17,4],[17,6,17,7],[17,8,17,10],[17,11,17,14],[18,1,18,4],[18,6,18,7],[18,8,18,10],[18,11,18,14],[15,1,15,4],[15,6,15,7],[15,8,15,10],[15,11,15,14],[16,1,16,4],[16,6,16,7],[16,8,16,10],[16,11,16,14],[13,1,13,4],[13,6,13,7],[13,8,13,10],[13,11,13,14],[14,1,14,4],[14,6,14,7],[14,8,14,10],[14,11,14,14],[3,12,3,14],[11,1,12,4],[11,5,12,5],[11,6,12,7],[11,8,12,10],[11,11,12,14],[3,5,3,7]]}
[null,{"$f":"Info!B2","v":"Version Okt. 2021"}]
[null,"Förderungswerber",null,null,null,{"$f":"Daten!D5","v":0}]
[null,"Bauvorhaben",null,null,null,{"$f":"Daten!D8&\" BA \"&Daten!D10&\", \"&Daten!D9","v":"ABA BA , "}]
[null,"Gemeinde",null,null,null,"G05",null,null,null,null,null,"Gemeindekennzahl "]
[]
[null,"Nachweis Mindestgebühr Musterhaus Steiermark"]
[null,"(alle Beträge ohne Ust.)"]
[]
[null,"Zum Zeitpunkt des Antrages vom",null,null,null,null,{"$f":"Daten!D13","v":"00:00:00"}]
[null,"gültige Gebührenordnung vom"]
[]
[null,"Angaben zum Musterhaus",null,null,null,"Wert","Einheit",null,"Einheitssatz",null,null,"Gebühr"]
[]
[null,"3 Personen",null,null,null,3,"E",null,null,null,null,{"$f":"F14*I14","v":0}]
[null,"Wasserverbrauch von 120 Liter pro Person und Tag",null,null,null,131.5,"m³/a",null,null,null,null,0]
[null,"WC / Bäder",null,null,null,null,"Stk.",null,null,null,null,0]
[null,"Berechnungsfläche",null,null,null,270,"m²",null,null,null,null,0]
[null,"Regenwasserentsorgung",null,null,null,null,null,null,null,null,null,0]
[null,"Grundstücksfläche",null,null,null,600,"m²",null,null,null,null,0]
[null,"Grundgebühr bzw.\nBereitstellungsgebühr",null,null,null,null,null,null,null,null,null,0]
[null,"Anmerkungen zur Herleitung allfälliger Durchschnittssätze für Einheitssätze"]
[null,"Laufende Gebührenbelastung eines Musterhauses pro Jahr",null,null,null,null,null,null,null,null,null,{"$f":"SUM(L14:N20)","v":0}]
[null,"Gebühren eines Musterhauses pro m3",null,null,null,null,null,null,null,null,null,{"$f":"L22/F15","v":0}]

{"sheet":"G06","index":8,"n_rows":23,"n_cols":12,"rows_kept":23,"cut":false,"hidden":false,"merged":[[21,1,21,10],[21,11,21,14],[22,1,22,10],[22,11,22,14],[23,11,23,14],[19,1,19,4],[19,6,19,7],[19,8,19,10],[19,11,19,14],[20,1,20,4],[20,5,20,14],[17,1,17,4],[17,6,17,7],[17,8,17,10],[17,11,17,14],[18,1,18,4],[18,6,18,7],[18,8,18,10],[18,11,18,14],[15,1,15,4],[15,6,15,7],[15,8,15,10],[15,11,15,14],[16,1,16,4],[16,6,16,7],[16,8,16,10],[16,11,16,14],[13,1,13,4],[13,6,13,7],[13,8,13,10],[13,11,13,14],[14,1,14,4],[14,6,14,7],[14,8,14,10],[14,11,14,14],[3,5,3,7],[3,12,3,14],[11,1,12,4],[11,5,12,5],[11,6,12,7],[11,8,12,10],[11,11,12,14]]}
[null,{"$f":"Info!B2","v":"Version Okt. 2021"}]
[null,"Förderungswerber",null,null,null,{"$f":"Daten!D5","v":0}]
[null,"Bauvorhaben",null,null,null,{"$f":"Daten!D8&\" BA \"&Daten!D10&\", \"&Daten!D9","v":"ABA BA , "}]
[null,"Gemeinde",null,null,null,"G06",null,null,null,null,null,"Gemeindekennzahl "]
[]
[null,"Nachweis Mindestgebühr Musterhaus Steiermark"]
[null,"(alle Beträge ohne Ust.)"]
[]
[null,"Zum Zeitpunkt des Antrages vom",null,null,null,null,{"$f":"Daten!D13","v":"00:00:00"}]
[null,"gültige Gebührenordnung vom"]
[]
[null,"Angaben zum Musterhaus",null,null,null,"Wert","Einheit",null,"Einheitssatz",null,null,"Gebühr"]
[]
[null,"3 Personen",null,null,null,3,"E",null,null,null,null,{"$f":"F14*I14","v":0}]
[null,"Wasserverbrauch von 120 Liter pro Person und Tag",null,null,null,131.5,"m³/a",null,null,null,null,0]
[null,"WC / Bäder",null,null,null,null,"Stk.",null,null,null,null,0]
[null,"Berechnungsfläche",null,null,null,270,"m²",null,null,null,null,0]
[null,"Regenwasserentsorgung",null,null,null,null,null,null,null,null,null,0]
[null,"Grundstücksfläche",null,null,null,600,"m²",null,null,null,null,0]
[null,"Grundgebühr bzw.\nBereitstellungsgebühr",null,null,null,null,null,null,null,null,null,0]
[null,"Anmerkungen zur Herleitung allfälliger Durchschnittssätze für Einheitssätze"]
[null,"Laufende Gebührenbelastung eines Musterhauses pro Jahr",null,null,null,null,null,null,null,null,null,{"$f":"SUM(L14:N20)","v":0}]
[null,"Gebühren eines Musterhauses pro m3",null,null,null,null,null,null,null,null,null,{"$f":"L22/F15","v":0}]

{"sheet":"G07","index":9,"n_rows":23,"n_cols":12,"rows_kept":23,"cut":false,"hidden":false,"merged":[[21,1,21,10],[21,11,21,14],[22,1,22,10],[22,11,22,14],[23,11,23,14],[19,1,19,4],[19,6,19,7],[19,8,19,10],[19,11,19,14],[20,1,20,4],[20,5,20,14],[17,1,17,4],[17,6,17,7],[17,8,17,10],[17,11,17,14],[18,1,18,4],[18,6,18,7],[18,8,18,10],[18,11,18,14],[15,1,15,4],[15,6,15,7],[15,8,15,10],[15,11,15,14],[16,1,16,4],[16,6,16,7],[16,8,16,10],[16,11,16,14],[13,1,13,4],[13,6,13,7],[13,8,13,10],[13,11,13,14],[14,1,14,4],[14,6,14,7],[14,8,14,10],[14,11,14,14],[3,5,3,7],[3,12,3,14],[11,1,12,4],[11,5,12,5],[11,6,12,7],[11,8,12,10],[11,11,12,14]]}
[null,{"$f":"Info!B2","v":"Version Okt. 2021"}]
[null,"Förderungswerber",null,null,null,{"$f":"Daten!D5","v":0}]
[null,"Bauvorhaben",null,null,null,{"$f":"Daten!D8&\" BA \"&Daten!D10&\", \"&Daten!D9","v":"ABA BA , "}]
[null,"Gemeinde",null,null,null,"G07",null,null,null,null,null,"Gemeindekennzahl "]
[]
[null,"Nachweis Mindestgebühr Musterhaus Steiermark"]
[null,"(alle Beträge ohne Ust.)"]
[]
[null,"Zum Zeitpunkt des Antrages vom",null,null,null,null,{"$f":"Daten!D13","v":"00:00:00"}]
[null,"gültige Gebührenordnung vom"]
[]
[null,"Angaben zum Musterhaus",null,null,null,"Wert","Einheit",null,"Einheitssatz",null,null,"Gebühr"]
[]
[null,"3 Personen",null,null,null,3,"E",null,null,null,null,{"$f":"F14*I14","v":0}]
[null,"Wasserverbrauch von 120 Liter pro Person und Tag",null,null,null,131.5,"m³/a",null,null,null,null,0]
[null,"WC / Bäder",null,null,null,null,"Stk.",null,null,null,null,0]
[null,"Berechnungsfläche",null,null,null,270,"m²",null,null,null,null,0]
[null,"Regenwasserentsorgung",null,null,null,null,null,null,null,null,null,0]
[null,"Grundstücksfläche",null,null,null,600,"m²",null,null,null,null,0]
[null,"Grundgebühr bzw.\nBereitstellungsgebühr",null,null,null,null,null,null,null,null,null,0]
[null,"Anmerkungen zur Herleitung allfälliger Durchschnittssätze für Einheitssätze"]
[null,"Laufende Gebührenbelastung eines Musterhauses pro Jahr",null,null,null,null,null,null,null,null,null,{"$f":"SUM(L14:N20)","v":0}]
[null,"Gebühren eines Musterhauses pro m3",null,null,null,null,null,null,null,null,null,{"$f":"L22/F15","v":0}]

{"sheet":"G08","index":10,"n_rows":23,"n_cols":12,"rows_kept":23,"cut":false,"hidden":false,"merged":[[21,1,21,10],[21,11,21,14],[22,1,22,10],[22,11,22,14],[23,11,23,14],[19,1,19,4],[19,6,19,7],[19,8,19,10],[19,11,19,14],[20,1,20,4],[20,5,20,14],[17,1,17,4],[17,6,17,7],[17,8,17,10],[17,11,17,14],[18,1,18,4],[18,6,18,7],[18,8,18,10],[18,11,18,14],[15,1,15,4],[15,6,15,7],[15,8,15,10],[15,11,15,14],[16,1,16,4],[16,6,16,7],[16,8,16,10],[16,11,16,14],[13,1,13,4],[13,6,13,7],[13,8,13,10],[13,11,13,14],[14,1,14,4],[14,6,14,7],[14,8,14,10],[14,11,14,14],[3,5,3,7],[3,12,3,14],[11,1,12,4],[11,5,12,5],[11,6,12,7],[11,8,12,10],[11,11,12,14]]}
[null,{"$f":"Info!B2","v":"Version Okt. 2021"}]
[null,"Förderungswerber",null,null,null,{"$f":"Daten!D5","v":0}]
[null,"Bauvorhaben",null,null,null,{"$f":"Daten!D8&\" BA \"&Daten!D10&\", \"&Daten!D9","v":"ABA BA , "}]
[null,"Gemeinde",null,null,null,"G08",null,null,null,null,null,"Gemeindekennzahl "]
[]
[null,"Nachweis Mindestgebühr Musterhaus Steiermark"]
[null,"(alle Beträge ohne Ust.)"]
[]
[null,"Zum Zeitpunkt des Antrages vom",null,null,null,null,{"$f":"Daten!D13","v":"00:00:00"}]
[null,"gültige Gebührenordnung vom"]
[]
[null,"Angaben zum Musterhaus",null,null,null,"Wert","Einheit",null,"Einheitssatz",null,null,"Gebühr"]
[]
[null,"3 Personen",null,null,null,3,"E",null,null,null,null,{"$f":"F14*I14","v":0}]
[null,"Wasserverbrauch von 120 Liter pro Person und Tag",null,null,null,131.5,"m³/a",null,null,null,null,0]
[null,"WC / Bäder",null,null,null,null,"Stk.",null,null,null,null,0]
[null,"Berechnungsfläche",null,null,null,270,"m²",null,null,null,null,0]
[null,"Regenwasserentsorgung",null,null,null,null,null,null,null,null,null,0]
[null,"Grundstücksfläche",null,null,null,600,"m²",null,null,null,null,0]
[null,"Grundgebühr bzw.\nBereitstellungsgebühr",null,null,null,null,null,null,null,null,null,0]
[null,"Anmerkungen zur Herleitung allfälliger Durchschnittssätze für Einheitssätze"]
[null,"Laufende Gebührenbelastung eines Musterhauses pro Jahr",null,null,null,null,null,null,null,null,null,{"$f":"SUM(L14:N20)","v":0}]
[null,"Gebühren eines Musterhauses pro m3",null,null,null,null,null,null,null,null,null,{"$f":"L22/F15","v":0}]

{"sheet":"G09","index":11,"n_rows":23,"n_cols":12,"rows_kept":23,"cut":false,"hidden":false,"merged":[[21,1,21,10],[21,11,21,14],[22,1,22,10],[22,11,22,14],[23,11,23,14],[19,1,19,4],[19,6,19,7],[19,8,19,10],[19,11,19,14],[20,1,20,4],[20,5,20,14],[17,1,17,4],[17,6,17,7],[17,8,17,10],[17,11,17,14],[18,1,18,4],[18,6,18,7],[18,8,18,10],[18,11,18,14],[15,1,15,4],[15,6,15,7],[15,8,15,10],[15,11,15,14],[16,1,16,4],[16,6,16,7],[16,8,16,10],[16,11,16,14],[13,1,13,4],[13,6,13,7],[13,8,13,10],[13,11,13,14],[14,1,14,4],[14,6,14,7],[14,8,14,10],[14,11,14,14],[3,5,3,7],[3,12,3,14],[11,1,12,4],[11,5,12,5],[11,6,12,7],[11,8,12,10],[11,11,12,14]]}
[null,{"$f":"Info!B2","v":"Version Okt. 2021"}]
[null,"Förderungswerber",null,null,null,{"$f":"Daten!D5","v":0}]
[null,"Bauvorhaben",null,null,null,{"$f":"Daten!D8&\" BA \"&Daten!D10&\", \"&Daten!D9","v":"ABA BA , "}]
[null,"Gemeinde",null,null,null,"G09",null,null,null,null,null,"Gemeindekennzahl "]
[]
[null,"Nachweis Mindestgebühr Musterhaus Steiermark"]
[null,"(alle Beträge ohne Ust.)"]
[]
[null,"Zum Zeitpunkt des Antrages vom",null,null,null,null,{"$f":"Daten!D13","v":"00:00:00"}]
[null,"gültige Gebührenordnung vom"]
[]
[null,"Angaben zum Musterhaus",null,null,null,"Wert","Einheit",null,"Einheitssatz",null,null,"Gebühr"]
[]
[null,"3 Personen",null,null,null,3,"E",null,null,null,null,{"$f":"F14*I14","v":0}]
[null,"Wasserverbrauch von 120 Liter pro Person und Tag",null,null,null,131.5,"m³/a",null,null,null,null,0]
[null,"WC / Bäder",null,null,null,null,"Stk.",null,null,null,null,0]
[null,"Berechnungsfläche",null,null,null,270,"m²",null,null,null,null,0]
[null,"Regenwasserentsorgung",null,null,null,null,null,null,null,null,null,0]
[null,"Grundstücksfläche",null,null,null,600,"m²",null,null,null,null,0]
[null,"Grundgebühr bzw.\nBereitstellungsgebühr",null,null,null,null,null,null,null,null,null,0]
[null,"Anmerkungen zur Herleitung allfälliger Durchschnittssätze für Einheitssätze"]
[null,"Laufende Gebührenbelastung eines Musterhauses pro Jahr",null,null,null,null,null,null,null,null,null,{"$f":"SUM(L14:N20)","v":0}]
[null,"Gebühren eines Musterhauses pro m3",null,null,null,null,null,null,null,null,null,{"$f":"L22/F15","v":0}]

{"sheet":"G10","index":12,"n_rows":23,"n_cols":12,"rows_kept":23,"cut":false,"hidden":false,"merged":[[21,1,21,10],[21,11,21,14],[22,1,22,10],[22,11,22,14],[23,11,23,14],[19,1,19,4],[19,6,19,7],[19,8,19,10],[19,11,19,14],[20,1,20,4],[20,5,20,14],[17,1,17,4],[17,6,17,7],[17,8,17,10],[17,11,17,14],[18,1,18,4],[18,6,18,7],[18,8,18,10],[18,11,18,14],[15,1,15,4],[15,6,15,7],[15,8,15,10],[15,11,15,14],[16,1,16,4],[16,6,16,7],[16,8,16,10],[16,11,16,14],[13,1,13,4],[13,6,13,7],[13,8,13,10],[13,11,13,14],[14,1,14,4],[14,6,14,7],[14,8,14,10],[14,11,14,14],[3,5,3,7],[3,12,3,14],[11,1,12,4],[11,5,12,5],[11,6,12,7],[11,8,12,10],[11,11,12,14]]}
[null,{"$f":"Info!B2","v":"Version Okt. 2021"}]
[null,"Förderungswerber",null,null,null,{"$f":"Daten!D5","v":0}]
[null,"Bauvorhaben",null,null,null,{"$f":"Daten!D8&\" BA \"&Daten!D10&\", \"&Daten!D9","v":"ABA BA , "}]
[null,"Gemeinde",null,null,null,"G10",null,null,null,null,null,"Gemeindekennzahl "]
[]
[null,"Nachweis Mindestgebühr Musterhaus Steiermark"]
[null,"(alle Beträge ohne Ust.)"]
[]
[null,"Zum Zeitpunkt des Antrages vom",null,null,null,null,{"$f":"Daten!D13","v":"00:00:00"}]
[null,"gültige Gebührenordnung vom"]
[]
[null,"Angaben zum Musterhaus",null,null,null,"Wert","Einheit",null,"Einheitssatz",null,null,"Gebühr"]
[]
[null,"3 Personen",null,null,null,3,"E",null,null,null,null,{"$f":"F14*I14","v":0}]
[null,"Wasserverbrauch von 120 Liter pro Person und Tag",null,null,null,131.5,"m³/a",null,null,null,null,0]
[null,"WC / Bäder",null,null,null,null,"Stk.",null,null,null,null,0]
[null,"Berechnungsfläche",null,null,null,270,"m²",null,null,null,null,0]
[null,"Regenwasserentsorgung",null,null,null,null,null,null,null,null,null,0]
[null,"Grundstücksfläche",null,null,null,600,"m²",null,null,null,null,0]
[null,"Grundgebühr bzw.\nBereitstellungsgebühr",null,null,null,null,null,null,null,null,null,0]
[null,"Anmerkungen zur Herleitung allfälliger Durchschnittssätze für Einheitssätze"]
[null,"Laufende Gebührenbelastung eines Musterhauses pro Jahr",null,null,null,null,null,null,null,null,null,{"$f":"SUM(L14:N20)","v":0}]
[null,"Gebühren eines Musterhauses pro m3",null,null,null,null,null,null,null,null,null,{"$f":"L22/F15","v":0}]

{"sheet":"G11","index":13,"n_rows":23,"n_cols":12,"rows_kept":23,"cut":false,"hidden":false,"merged":[[21,1,21,10],[21,11,21,14],[22,1,22,10],[22,11,22,14],[23,11,23,14],[19,1,19,4],[19,6,19,7],[19,8,19,10],[19,11,19,14],[20,1,20,4],[20,5,20,14],[17,1,17,4],[17,6,17,7],[17,8,17,10],[17,11,17,14],[18,1,18,4],[18,6,18,7],[18,8,18,10],[18,11,18,14],[15,1,15,4],[15,6,15,7],[15,8,15,10],[15,11,15,14],[16,1,16,4],[16,6,16,7],[16,8,16,10],[16,11,16,14],[13,1,13,4],[13,6,13,7],[13,8,13,10],[13,11,13,14],[14,1,14,4],[14,6,14,7],[14,8,14,10],[14,11,14,14],[3,5,3,7],[3,12,3,14],[11,1,12,4],[11,5,12,5],[11,6,12,7],[11,8,12,10],[11,11,12,14]]}
[null,{"$f":"Info!B2","v":"Version Okt. 2021"}]
[null,"Förderungswerber",null,null,null,{"$f":"Daten!D5","v":0}]
[null,"Bauvorhaben",null,null,null,{"$f":"Daten!D8&\" BA \"&Daten!D10&\", \"&Daten!D9","v":"ABA BA , "}]
[null,"Gemeinde",null,null,null,"G11",null,null,null,null,null,"Gemeindekennzahl "]
[]
[null,"Nachweis Mindestgebühr Musterhaus Steiermark"]
[null,"(alle Beträge ohne Ust.)"]
[]
[null,"Zum Zeitpunkt des Antrages vom",null,null,null,null,{"$f":"Daten!D13","v":"00:00:00"}]
[null,"gültige Gebührenordnung vom"]
[]
[null,"Angaben zum Musterhaus",null,null,null,"Wert","Einheit",null,"Einheitssatz",null,null,"Gebühr"]
[]
[null,"3 Personen",null,null,null,3,"E",null,null,null,null,{"$f":"F14*I14","v":0}]
[null,"Wasserverbrauch von 120 Liter pro Person und Tag",null,null,null,131.5,"m³/a",null,null,null,null,0]
[null,"WC / Bäder",null,null,null,null,"Stk.",null,null,null,null,0]
[null,"Berechnungsfläche",null,null,null,270,"m²",null,null,null,null,0]
[null,"Regenwasserentsorgung",null,null,null,null,null,null,null,null,null,0]
[null,"Grundstücksfläche",null,null,null,600,"m²",null,null,null,null,0]
[null,"Grundgebühr bzw.\nBereitstellungsgebühr",null,null,null,null,null,null,null,null,null,0]
[null,"Anmerkungen zur Herleitung allfälliger Durchschnittssätze für Einheitssätze"]
[null,"Laufende Gebührenbelastung eines Musterhauses pro Jahr",null,null,null,null,null,null,null,null,null,{"$f":"SUM(L14:N20)","v":0}]
[null,"Gebühren eines Musterhauses pro m3",null,null,null,null,null,null,null,null,null,{"$f":"L22/F15","v":0}]

{"sheet":"G12","index":14,"n_rows":23,"n_cols":12,"rows_kept":23,"cut":false,"hidden":false,"merged":[[21,1,21,10],[21,11,21,14],[22,1,22,10],[22,11,22,14],[23,11,23,14],[19,1,19,4],[19,6,19,7],[19,8,19,10],[19,11,19,14],[20,1,20,4],[20,5,20,14],[17,1,17,4],[17,6,17,7],[17,8,17,10],[17,11,17,14],[18,1,18,4],[18,6,18,7],[18,8,18,10],[18,11,18,14],[15,1,15,4],[15,6,15,7],[15,8,15,10],[15,11,15,14],[16,1,16,4],[16,6,16,7],[16,8,16,10],[16,11,16,14],[13,1,13,4],[13,6,13,7],[13,8,13,10],[13,11,13,14],[14,1,14,4],[14,6,14,7],[14,8,14,10],[14,11,14,14],[3,5,3,7],[3,12,3,14],[11,1,12,4],[11,5,12,5],[11,6,12,7],[11,8,12,10],[11,11,12,14]]}
[null,{"$f":"Info!B2","v":"Version Okt. 2021"}]
[null,"Förderungswerber",null,null,null,{"$f":"Daten!D5","v":0}]
[null,"Bauvorhaben",null,null,null,{"$f":"Daten!D8&\" BA \"&Daten!D10&\", \"&Daten!D9","v":"ABA BA , "}]
[null,"Gemeinde",null,null,null,"G12",null,null,null,null,null,"Gemeindekennzahl "]
[]
[null,"Nachweis Mindestgebühr Musterhaus Steiermark"]
[null,"(alle Beträge ohne Ust.)"]
[]
[null,"Zum Zeitpunkt des Antrages vom",null,null,null,null,{"$f":"Daten!D13","v":"00:00:00"}]
[null,"gültige Gebührenordnung vom"]
[]
[null,"Angaben zum Musterhaus",null,null,null,"Wert","Einheit",null,"Einheitssatz",null,null,"Gebühr"]
[]
[null,"3 Personen",null,null,null,3,"E",null,null,null,null,{"$f":"F14*I14","v":0}]
[null,"Wasserverbrauch von 120 Liter pro Person und Tag",null,null,null,131.5,"m³/a",null,null,null,null,0]
[null,"WC / Bäder",null,null,null,null,"Stk.",null,null,null,null,0]
[null,"Berechnungsfläche",null,null,null,270,"m²",null,null,null,null,0]
[null,"Regenwasserentsorgung",null,null,null,null,null,null,null,null,null,0]
[null,"Grundstücksfläche",null,null,null,600,"m²",null,null,null,null,0]
[null,"Grundgebühr bzw.\nBereitstellungsgebühr",null,null,null,null,null,null,null,null,null,0]
[null,"Anmerkungen zur Herleitung allfälliger Durchschnittssätze für Einheitssätze"]
[null,"Laufende Gebührenbelastung eines Musterhauses pro Jahr",null,null,null,null,null,null,null,null,null,{"$f":"SUM(L14:N20)","v":0}]
[null,"Gebühren eines Musterhauses pro m3",null,null,null,null,null,null,null,null,null,{"$f":"L22/F15","v":0}]

{"sheet":"G13","index":15,"n_rows":23,"n_cols":12,"rows_kept":23,"cut":false,"hidden":false,"merged":[[21,1,21,10],[21,11,21,14],[22,1,22,10],[22,11,22,14],[23,11,23,14],[19,1,19,4],[19,6,19,7],[19,8,19,10],[19,11,19,14],[20,1,20,4],[20,5,20,14],[17,1,17,4],[17,6,17,7],[17,8,17,10],[17,11,17,14],[18,1,18,4],[18,6,18,7],[18,8,18,10],[18,11,18,14],[15,1,15,4],[15,6,15,7],[15,8,15,10],[15,11,15,14],[16,1,16,4],[16,6,16,7],[16,8,16,10],[16,11,16,14],[13,1,13,4],[13,6,13,7],[13,8,13,10],[13,11,13,14],[14,1,14,4],[14,6,14,7],[14,8,14,10],[14,11,14,14],[3,5,3,7],[3,12,3,14],[11,1,12,4],[11,5,12,5],[11,6,12,7],[11,8,12,10],[11,11,12,14]]}
[null,{"$f":"Info!B2","v":"Version Okt. 2021"}]
[null,"Förderungswerber",null,null,null,{"$f":"Daten!D5","v":0}]
[null,"Bauvorhaben",null,null,null,{"$f":"Daten!D8&\" BA \"&Daten!D10&\", \"&Daten!D9","v":"ABA BA , "}]
[null,"Gemeinde",null,null,null,"G13",null,null,null,null,null,"Gemeindekennzahl "]
[]
[null,"Nachweis Mindestgebühr Musterhaus Steiermark"]
[null,"(alle Beträge ohne Ust.)"]
[]
[null,"Zum Zeitpunkt des Antrages vom",null,null,null,null,{"$f":"Daten!D13","v":"00:00:00"}]
[null,"gültige Gebührenordnung vom"]
[]
[null,"Angaben zum Musterhaus",null,null,null,"Wert","Einheit",null,"Einheitssatz",null,null,"Gebühr"]
[]
[null,"3 Personen",null,null,null,3,"E",null,null,null,null,{"$f":"F14*I14","v":0}]
[null,"Wasserverbrauch von 120 Liter pro Person und Tag",null,null,null,131.5,"m³/a",null,null,null,null,0]
[null,"WC / Bäder",null,null,null,null,"Stk.",null,null,null,null,0]
[null,"Berechnungsfläche",null,null,null,270,"m²",null,null,null,null,0]
[null,"Regenwasserentsorgung",null,null,null,null,null,null,null,null,null,0]
[null,"Grundstücksfläche",null,null,null,600,"m²",null,null,null,null,0]
[null,"Grundgebühr bzw.\nBereitstellungsgebühr",null,null,null,null,null,null,null,null,null,0]
[null,"Anmerkungen zur Herleitung allfälliger Durchschnittssätze für Einheitssätze"]
[null,"Laufende Gebührenbelastung eines Musterhauses pro Jahr",null,null,null,null,null,null,null,null,null,{"$f":"SUM(L14:N20)","v":0}]
[null,"Gebühren eines Musterhauses pro m3",null,null,null,null,null,null,null,null,null,{"$f":"L22/F15","v":0}]

{"sheet":"G14","index":16,"n_rows":23,"n_cols":12,"rows_kept":23,"cut":false,"hidden":false,"merged":[[21,1,21,10],[21,11,21,14],[22,1,22,10],[22,11,22,14],[23,11,23,14],[19,1,19,4],[19,6,19,7],[19,8,19,10],[19,11,19,14],[20,1,20,4],[20,5,20,14],[17,1,17,4],[17,6,17,7],[17,8,17,10],[17,11,17,14],[18,1,18,4],[18,6,18,7],[18,8,18,10],[18,11,18,14],[15,1,15,4],[15,6,15,7],[15,8,15,10],[15,11,15,14],[16,1,16,4],[16,6,16,7],[16,8,16,10],[16,11,16,14],[13,1,13,4],[13,6,13,7],[13,8,13,10],[13,11,13,14],[14,1,14,4],[14,6,14,7],[14,8,14,10],[14,11,14,14],[3,5,3,7],[3,12,3,14],[11,1,12,4],[11,5,12,5],[11,6,12,7],[11,8,12,10],[11,11,12,14]]}
[null,{"$f":"Info!B2","v":"Version Okt. 2021"}]
[null,"Förderungswerber",null,null,null,{"$f":"Daten!D5","v":0}]
[null,"Bauvorhaben",null,null,null,{"$f":"Daten!D8&\" BA \"&Daten!D10&\", \"&Daten!D9","v":"ABA BA , "}]
[null,"Gemeinde",null,null,null,"G14",null,null,null,null,null,"Gemeindekennzahl "]
[]
[null,"Nachweis Mindestgebühr Musterhaus Steiermark"]
[null,"(alle Beträge ohne Ust.)"]
[]
[null,"Zum Zeitpunkt des Antrages vom",null,null,null,null,{"$f":"Daten!D13","v":"00:00:00"}]
[null,"gültige Gebührenordnung vom"]
[]
[null,"Angaben zum Musterhaus",null,null,null,"Wert","Einheit",null,"Einheitssatz",null,null,"Gebühr"]
[]
[null,"3 Personen",null,null,null,3,"E",null,null,null,null,{"$f":"F14*I14","v":0}]
[null,"Wasserverbrauch von 120 Liter pro Person und Tag",null,null,null,131.5,"m³/a",null,null,null,null,0]
[null,"WC / Bäder",null,null,null,null,"Stk.",null,null,null,null,0]
[null,"Berechnungsfläche",null,null,null,270,"m²",null,null,null,null,0]
[null,"Regenwasserentsorgung",null,null,null,null,null,null,null,null,null,0]
[null,"Grundstücksfläche",null,null,null,600,"m²",null,null,null,null,0]
[null,"Grundgebühr bzw.\nBereitstellungsgebühr",null,null,null,null,null,null,null,null,null,0]
[null,"Anmerkungen zur Herleitung allfälliger Durchschnittssätze für Einheitssätze"]
[null,"Laufende Gebührenbelastung eines Musterhauses pro Jahr",null,null,null,null,null,null,null,null,null,{"$f":"SUM(L14:N20)","v":0}]
[null,"Gebühren eines Musterhauses pro m3",null,null,null,null,null,null,null,null,null,{"$f":"L22/F15","v":0}]

{"sheet":"G15","index":17,"n_rows":23,"n_cols":12,"rows_kept":23,"cut":false,"hidden":false,"merged":[[21,1,21,10],[21,11,21,14],[22,1,22,10],[22,11,22,14],[23,11,23,14],[19,1,19,4],[19,6,19,7],[19,8,19,10],[19,11,19,14],[20,1,20,4],[20,5,20,14],[17,1,17,4],[17,6,17,7],[17,8,17,10],[17,11,17,14],[18,1,18,4],[18,6,18,7],[18,8,18,10],[18,11,18,14],[15,1,15,4],[15,6,15,7],[15,8,15,10],[15,11,15,14],[16,1,16,4],[16,6,16,7],[16,8,16,10],[16,11,16,14],[13,1,13,4],[13,6,13,7],[13,8,13,10],[13,11,13,14],[14,1,14,4],[14,6,14,7],[14,8,14,10],[14,11,14,14],[3,5,3,7],[3,12,3,14],[11,1,12,4],[11,5,12,5],[11,6,12,7],[11,8,12,10],[11,11,12,14]]}
[null,{"$f":"Info!B2","v":"Version Okt. 2021"}]
[null,"Förderungswerber",null,null,null,{"$f":"Daten!D5","v":0}]
[null,"Bauvorhaben",null,null,null,{"$f":"Daten!D8&\" BA \"&Daten!D10&\", \"&Daten!D9","v":"ABA BA , "}]
[null,"Gemeinde",null,null,null,"G15",null,null,null,null,null,"Gemeindekennzahl "]
[]
[null,"Nachweis Mindestgebühr Musterhaus Steiermark"]
[null,"(alle Beträge ohne Ust.)"]
[]
[null,"Zum Zeitpunkt des Antrages vom",null,null,null,null,{"$f":"Daten!D13","v":"00:00:00"}]
[null,"gültige Gebührenordnung vom"]
[]
[null,"Angaben zum Musterhaus",null,null,null,"Wert","Einheit",null,"Einheitssatz",null,null,"Gebühr"]
[]
[null,"3 Personen",null,null,null,3,"E",null,null,null,null,{"$f":"F14*I14","v":0}]
[null,"Wasserverbrauch von 120 Liter pro Person und Tag",null,null,null,131.5,"m³/a",null,null,null,null,0]
[null,"WC / Bäder",null,null,null,null,"Stk.",null,null,null,null,0]
[null,"Berechnungsfläche",null,null,null,270,"m²",null,null,null,null,0]
[null,"Regenwasserentsorgung",null,null,null,null,null,null,null,null,null,0]
[null,"Grundstücksfläche",null,null,null,600,"m²",null,null,null,null,0]
[null,"Grundgebühr bzw.\nBereitstellungsgebühr",null,null,null,null,null,null,null,null,null,0]
[null,"Anmerkungen zur Herleitung allfälliger Durchschnittssätze für Einheitssätze"]
[null,"Laufende Gebührenbelastung eines Musterhauses pro Jahr",null,null,null,null,null,null,null,null,null,{"$f":"SUM(L14:N20)","v":0}]
[null,"Gebühren eines Musterhauses pro m3",null,null,null,null,null,null,null,null,null,{"$f":"L22/F15","v":0}]

{"sheet":"G16","index":18,"n_rows":23,"n_cols":12,"rows_kept":23,"cut":false,"hidden":false,"merged":[[21,1,21,10],[21,11,21,14],[22,1,22,10],[22,11,22,14],[23,11,23,14],[19,1,19,4],[19,6,19,7],[19,8,19,10],[19,11,19,14],[20,1,20,4],[20,5,20,14],[17,1,17,4],[17,6,17,7],[17,8,17,10],[17,11,17,14],[18,1,18,4],[18,6,18,7],[18,8,18,10],[18,11,18,14],[15,1,15,4],[15,6,15,7],[15,8,15,10],[15,11,15,14],[16,1,16,4],[16,6,16,7],[16,8,16,10],[16,11,16,14],[13,1,13,4],[13,6,13,7],[13,8,13,10],[13,11,13,14],[14,1,14,4],[14,6,14,7],[14,8,14,10],[14,11,14,14],[3,5,3,7],[3,12,3,14],[11,1,12,4],[11,5,12,5],[11,6,12,7],[11,8,12,10],[11,11,12,14]]}
[null,{"$f":"Info!B2","v":"Version Okt. 2021"}]
[null,"Förderungswerber",null,null,null,{"$f":"Daten!D5","v":0}]
[null,"Bauvorhaben",null,null,null,{"$f":"Daten!D8&\" BA \"&Daten!D10&\", \"&Daten!D9","v":"ABA BA , "}]
[null,"Gemeinde",null,null,null,"G16",null,null,null,null,null,"Gemeindekennzahl "]
[]
[null,"Nachweis Mindestgebühr Musterhaus Steiermark"]
[null,"(alle Beträge ohne Ust.)"]
[]
[null,"Zum Zeitpunkt des Antrages vom",null,null,null,null,{"$f":"Daten!D13","v":"00:00:00"}]
[null,"gültige Gebührenordnung vom"]
[]
[null,"Angaben zum Musterhaus",null,null,null,"Wert","Einheit",null,"Einheitssatz",null,null,"Gebühr"]
[]
[null,"3 Personen",null,null,null,3,"E",null,null,null,null,{"$f":"F14*I14","v":0}]
[null,"Wasserverbrauch von 120 Liter pro Person und Tag",null,null,null,131.5,"m³/a",null,null,null,null,0]
[null,"WC / Bäder",null,null,null,null,"Stk.",null,null,null,null,0]
[null,"Berechnungsfläche",null,null,null,270,"m²",null,null,null,null,0]
[null,"Regenwasserentsorgung",null,null,null,null,null,null,null,null,null,0]
[null,"Grundstücksfläche",null,null,null,600,"m²",null,null,null,null,0]
[null,"Grundgebühr bzw.\nBereitstellungsgebühr",null,null,null,null,null,null,null,null,null,0]
[null,"Anmerkungen zur Herleitung allfälliger Durchschnittssätze für Einheitssätze"]
[null,"Laufende Gebührenbelastung eines Musterhauses pro Jahr",null,null,null,null,null,null,null,null,null,{"$f":"SUM(L14:N20)","v":0}]
[null,"Gebühren eines Musterhauses pro m3",null,null,null,null,null,null,null,null,null,{"$f":"L22/F15","v":0}]

{"sheet":"G17","index":19,"n_rows":23,"n_cols":12,"rows_kept":23,"cut":false,"hidden":false,"merged":[[21,1,21,10],[21,11,21,14],[22,1,22,10],[22,11,22,14],[23,11,23,14],[19,1,19,4],[19,6,19,7],[19,8,19,10],[19,11,19,14],[20,1,20,4],[20,5,20,14],[17,1,17,4],[17,6,17,7],[17,8,17,10],[17,11,17,14],[18,1,18,4],[18,6,18,7],[18,8,18,10],[18,11,18,14],[15,1,15,4],[15,6,15,7],[15,8,15,10],[15,11,15,14],[16,1,16,4],[16,6,16,7],[16,8,16,10],[16,11,16,14],[13,1,13,4],[13,6,13,7],[13,8,13,10],[13,11,13,14],[14,1,14,4],[14,6,14,7],[14,8,14,10],[14,11,14,14],[3,5,3,7],[3,12,3,14],[11,1,12,4],[11,5,12,5],[11,6,12,7],[11,8,12,10],[11,11,12,14]]}
[null,{"$f":"Info!B2","v":"Version Okt. 2021"}]
[null,"Förderungswerber",null,null,null,{"$f":"Daten!D5","v":0}]
[null,"Bauvorhaben",null,null,null,{"$f":"Daten!D8&\" BA \"&Daten!D10&\", \"&Daten!D9","v":"ABA BA , "}]
[null,"Gemeinde",null,null,null,"G17",null,null,null,null,null,"Gemeindekennzahl "]
[]
[null,"Nachweis Mindestgebühr Musterhaus Steiermark"]
[null,"(alle Beträge ohne Ust.)"]
[]
[null,"Zum Zeitpunkt des Antrages vom",null,null,null,null,{"$f":"Daten!D13","v":"00:00:00"}]
[null,"gültige Gebührenordnung vom"]
[]
[null,"Angaben zum Musterhaus",null,null,null,"Wert","Einheit",null,"Einheitssatz",null,null,"Gebühr"]
[]
[null,"3 Personen",null,null,null,3,"E",null,null,null,null,{"$f":"F14*I14","v":0}]
[null,"Wasserverbrauch von 120 Liter pro Person und Tag",null,null,null,131.5,"m³/a",null,null,null,null,0]
[null,"WC / Bäder",null,null,null,null,"Stk.",null,null,null,null,0]
[null,"Berechnungsfläche",null,null,null,270,"m²",null,null,null,null,0]
[null,"Regenwasserentsorgung",null,null,null,null,null,null,null,null,null,0]
[null,"Grundstücksfläche",null,null,null,600,"m²",null,null,null,null,0]
[null,"Grundgebühr bzw.\nBereitstellungsgebühr",null,null,null,null,null,null,null,null,null,0]
[null,"Anmerkungen zur Herleitung allfälliger Durchschnittssätze für Einheitssätze"]
[null,"Laufende Gebührenbelastung eines Musterhauses pro Jahr",null,null,null,null,null,null,null,null,null,{"$f":"SUM(L14:N20)","v":0}]
[null,"Gebühren eines Musterhauses pro m3",null,null,null,null,null,null,null,null,null,{"$f":"L22/F15","v":0}]

{"sheet":"G18","index":20,"n_rows":23,"n_cols":12,"rows_kept":23,"cut":false,"hidden":false,"merged":[[21,1,21,10],[21,11,21,14],[22,1,22,10],[22,11,22,14],[23,11,23,14],[19,1,19,4],[19,6,19,7],[19,8,19,10],[19,11,19,14],[20,1,20,4],[20,5,20,14],[17,1,17,4],[17,6,17,7],[17,8,17,10],[17,11,17,14],[18,1,18,4],[18,6,18,7],[18,8,18,10],[18,11,18,14],[15,1,15,4],[15,6,15,7],[15,8,15,10],[15,11,15,14],[16,1,16,4],[16,6,16,7],[16,8,16,10],[16,11,16,14],[13,1,13,4],[13,6,13,7],[13,8,13,10],[13,11,13,14],[14,1,14,4],[14,6,14,7],[14,8,14,10],[14,11,14,14],[3,5,3,7],[3,12,3,14],[11,1,12,4],[11,5,12,5],[11,6,12,7],[11,8,12,10],[11,11,12,14]]}
[null,{"$f":"Info!B2","v":"Version Okt. 2021"}]
[null,"Förderungswerber",null,null,null,{"$f":"Daten!D5","v":0}]
[null,"Bauvorhaben",null,null,null,{"$f":"Daten!D8&\" BA \"&Daten!D10&\", \"&Daten!D9","v":"ABA BA , "}]
[null,"Gemeinde",null,null,null,"G18",null,null,null,null,null,"Gemeindekennzahl "]
[]
[null,"Nachweis Mindestgebühr Musterhaus Steiermark"]
[null,"(alle Beträge ohne Ust.)"]
[]
[null,"Zum Zeitpunkt des Antrages vom",null,null,null,null,{"$f":"Daten!D13","v":"00:00:00"}]
[null,"gültige Gebührenordnung vom"]
[]
[null,"Angaben zum Musterhaus",null,null,null,"Wert","Einheit",null,"Einheitssatz",null,null,"Gebühr"]
[]
[null,"3 Personen",null,null,null,3,"E",null,null,null,null,{"$f":"F14*I14","v":0}]
[null,"Wasserverbrauch von 120 Liter pro Person und Tag",null,null,null,131.5,"m³/a",null,null,null,null,0]
[null,"WC / Bäder",null,null,null,null,"Stk.",null,null,null,null,0]
[null,"Berechnungsfläche",null,null,null,270,"m²",null,null,null,null,0]
[null,"Regenwasserentsorgung",null,null,null,null,null,null,null,null,null,0]
[null,"Grundstücksfläche",null,null,null,600,"m²",null,null,null,null,0]
[null,"Grundgebühr bzw.\nBereitstellungsgebühr",null,null,null,null,null,null,null,null,null,0]
[null,"Anmerkungen zur Herleitung allfälliger Durchschnittssätze für Einheitssätze"]
[null,"Laufende Gebührenbelastung eines Musterhauses pro Jahr",null,null,null,null,null,null,null,null,null,{"$f":"SUM(L14:N20)","v":0}]
[null,"Gebühren eines Musterhauses pro m3",null,null,null,null,null,null,null,null,null,{"$f":"L22/F15","v":0}]

{"sheet":"G19","index":21,"n_rows":23,"n_cols":12,"rows_kept":23,"cut":false,"hidden":false,"merged":[[21,1,21,10],[21,11,21,14],[22,1,22,10],[22,11,22,14],[23,11,23,14],[19,1,19,4],[19,6,19,7],[19,8,19,10],[19,11,19,14],[20,1,20,4],[20,5,20,14],[17,1,17,4],[17,6,17,7],[17,8,17,10],[17,11,17,14],[18,1,18,4],[18,6,18,7],[18,8,18,10],[18,11,18,14],[15,1,15,4],[15,6,15,7],[15,8,15,10],[15,11,15,14],[16,1,16,4],[16,6,16,7],[16,8,16,10],[16,11,16,14],[13,1,13,4],[13,6,13,7],[13,8,13,10],[13,11,13,14],[14,1,14,4],[14,6,14,7],[14,8,14,10],[14,11,14,14],[3,5,3,7],[3,12,3,14],[11,1,12,4],[11,5,12,5],[11,6,12,7],[11,8,12,10],[11,11,12,14]]}
[null,{"$f":"Info!B2","v":"Version Okt. 2021"}]
[null,"Förderungswerber",null,null,null,{"$f":"Daten!D5","v":0}]
[null,"Bauvorhaben",null,null,null,{"$f":"Daten!D8&\" BA \"&Daten!D10&\", \"&Daten!D9","v":"ABA BA , "}]
[null,"Gemeinde",null,null,null,"G19",null,null,null,null,null,"Gemeindekennzahl "]
[]
[null,"Nachweis Mindestgebühr Musterhaus Steiermark"]
[null,"(alle Beträge ohne Ust.)"]
[]
[null,"Zum Zeitpunkt des Antrages vom",null,null,null,null,{"$f":"Daten!D13","v":"00:00:00"}]
[null,"gültige Gebührenordnung vom"]
[]
[null,"Angaben zum Musterhaus",null,null,null,"Wert","Einheit",null,"Einheitssatz",null,null,"Gebühr"]
[]
[null,"3 Personen",null,null,null,3,"E",null,null,null,null,{"$f":"F14*I14","v":0}]
[null,"Wasserverbrauch von 120 Liter pro Person und Tag",null,null,null,131.5,"m³/a",null,null,null,null,0]
[null,"WC / Bäder",null,null,null,null,"Stk.",null,null,null,null,0]
[null,"Berechnungsfläche",null,null,null,270,"m²",null,null,null,null,0]
[null,"Regenwasserentsorgung",null,null,null,null,null,null,null,null,null,0]
[null,"Grundstücksfläche",null,null,null,600,"m²",null,null,null,null,0]
[null,"Grundgebühr bzw.\nBereitstellungsgebühr",null,null,null,null,null,null,null,null,null,0]
[null,"Anmerkungen zur Herleitung allfälliger Durchschnittssätze für Einheitssätze"]
[null,"Laufende Gebührenbelastung eines Musterhauses pro Jahr",null,null,null,null,null,null,null,null,null,{"$f":"SUM(L14:N20)","v":0}]
[null,"Gebühren eines Musterhauses pro m3",null,null,null,null,null,null,null,null,null,{"$f":"L22/F15","v":0}]

{"sheet":"G20","index":22,"n_rows":23,"n_cols":12,"rows_kept":23,"cut":false,"hidden":false,"merged":[[21,1,21,10],[21,11,21,14],[22,1,22,10],[22,11,22,14],[23,11,23,14],[19,1,19,4],[19,6,19,7],[19,8,19,10],[19,11,19,14],[20,1,20,4],[20,5,20,14],[17,1,17,4],[17,6,17,7],[17,8,17,10],[17,11,17,14],[18,1,18,4],[18,6,18,7],[18,8,18,10],[18,11,18,14],[15,1,15,4],[15,6,15,7],[15,8,15,10],[15,11,15,14],[16,1,16,4],[16,6,16,7],[16,8,16,10],[16,11,16,14],[13,1,13,4],[13,6,13,7],[13,8,13,10],[13,11,13,14],[14,1,14,4],[14,6,14,7],[14,8,14,10],[14,11,14,14],[3,5,3,7],[3,12,3,14],[11,1,12,4],[11,5,12,5],[11,6,12,7],[11,8,12,10],[11,11,12,14]]}
[null,{"$f":"Info!B2","v":"Version Okt. 2021"}]
[null,"Förderungswerber",null,null,null,{"$f":"Daten!D5","v":0}]
[null,"Bauvorhaben",null,null,null,{"$f":"Daten!D8&\" BA \"&Daten!D10&\", \"&Daten!D9","v":"ABA BA , "}]
[null,"Gemeinde",null,null,null,"G20",null,null,null,null,null,"Gemeindekennzahl "]
[]
[null,"Nachweis Mindestgebühr Musterhaus Steiermark"]
[null,"(alle Beträge ohne Ust.)"]
[]
[null,"Zum Zeitpunkt des Antrages vom",null,null,null,null,{"$f":"Daten!D13","v":"00:00:00"}]
[null,"gültige Gebührenordnung vom"]
[]
[null,"Angaben zum Musterhaus",null,null,null,"Wert","Einheit",null,"Einheitssatz",null,null,"Gebühr"]
[]
[null,"3 Personen",null,null,null,3,"E",null,null,null,null,{"$f":"F14*I14","v":0}]
[null,"Wasserverbrauch von 120 Liter pro Person und Tag",null,null,null,131.5,"m³/a",null,null,null,null,0]
[null,"WC / Bäder",null,null,null,null,"Stk.",null,null,null,null,0]
[null,"Berechnungsfläche",null,null,null,270,"m²",null,null,null,null,0]
[null,"Regenwasserentsorgung",null,null,null,null,null,null,null,null,null,0]
[null,"Grundstücksfläche",null,null,null,600,"m²",null,null,null,null,0]
[null,"Grundgebühr bzw.\nBereitstellungsgebühr",null,null,null,null,null,null,null,null,null,0]
[null,"Anmerkungen zur Herleitung allfälliger Durchschnittssätze für Einheitssätze"]
[null,"Laufende Gebührenbelastung eines Musterhauses pro Jahr",null,null,null,null,null,null,null,null,null,{"$f":"SUM(L14:N20)","v":0}]
[null,"Gebühren eines Musterhauses pro m3",null,null,null,null,null,null,null,null,null,{"$f":"L22/F15","v":0}]

{"sheet":"G21","index":23,"n_rows":23,"n_cols":12,"rows_kept":23,"cut":false,"hidden":false,"merged":[[21,1,21,10],[21,11,21,14],[22,1,22,10],[22,11,22,14],[23,11,23,14],[19,1,19,4],[19,6,19,7],[19,8,19,10],[19,11,19,14],[20,1,20,4],[20,5,20,14],[17,1,17,4],[17,6,17,7],[17,8,17,10],[17,11,17,14],[18,1,18,4],[18,6,18,7],[18,8,18,10],[18,11,18,14],[15,1,15,4],[15,6,15,7],[15,8,15,10],[15,11,15,14],[16,1,16,4],[16,6,16,7],[16,8,16,10],[16,11,16,14],[13,1,13,4],[13,6,13,7],[13,8,13,10],[13,11,13,14],[14,1,14,4],[14,6,14,7],[14,8,14,10],[14,11,14,14],[3,5,3,7],[3,12,3,14],[11,1,12,4],[11,5,12,5],[11,6,12,7],[11,8,12,10],[11,11,12,14]]}
[null,{"$f":"Info!B2","v":"Version Okt. 2021"}]
[null,"Förderungswerber",null,null,null,{"$f":"Daten!D5","v":0}]
[null,"Bauvorhaben",null,null,null,{"$f":"Daten!D8&\" BA \"&Daten!D10&\", \"&Daten!D9","v":"ABA BA , "}]
[null,"Gemeinde",null,null,null,"G21",null,null,null,null,null,"Gemeindekennzahl "]
[]
[null,"Nachweis Mindestgebühr Musterhaus Steiermark"]
[null,"(alle Beträge ohne Ust.)"]
[]
[null,"Zum Zeitpunkt des Antrages vom",null,null,null,null,{"$f":"Daten!D13","v":"00:00:00"}]
[null,"gültige Gebührenordnung vom"]
[]
[null,"Angaben zum Musterhaus",null,null,null,"Wert","Einheit",null,"Einheitssatz",null,null,"Gebühr"]
[]
[null,"3 Personen",null,null,null,3,"E",null,null,null,null,{"$f":"F14*I14","v":0}]
[null,"Wasserverbrauch von 120 Liter pro Person und Tag",null,null,null,131.5,"m³/a",null,null,null,null,0]
[null,"WC / Bäder",null,null,null,null,"Stk.",null,null,null,null,0]
[null,"Berechnungsfläche",null,null,null,270,"m²",null,null,null,null,0]
[null,"Regenwasserentsorgung",null,null,null,null,null,null,null,null,null,0]
[null,"Grundstücksfläche",null,null,null,600,"m²",null,null,null,null,0]
[null,"Grundgebühr bzw.\nBereitstellungsgebühr",null,null,null,null,null,null,null,null,null,0]
[null,"Anmerkungen zur Herleitung allfälliger Durchschnittssätze für Einheitssätze"]
[null,"Laufende Gebührenbelastung eines Musterhauses pro Jahr",null,null,null,null,null,null,null,null,null,{"$f":"SUM(L14:N20)","v":0}]
[null,"Gebühren eines Musterhauses pro m3",null,null,null,null,null,null,null,null,null,{"$f":"L22/F15","v":0}]

{"sheet":"G22","index":24,"n_rows":23,"n_cols":12,"rows_kept":23,"cut":false,"hidden":false,"merged":[[21,1,21,10],[21,11,21,14],[22,1,22,10],[22,11,22,14],[23,11,23,14],[19,1,19,4],[19,6,19,7],[19,8,19,10],[19,11,19,14],[20,1,20,4],[20,5,20,14],[17,1,17,4],[17,6,17,7],[17,8,17,10],[17,11,17,14],[18,1,18,4],[18,6,18,7],[18,8,18,10],[18,11,18,14],[15,1,15,4],[15,6,15,7],[15,8,15,10],[15,11,15,14],[16,1,16,4],[16,6,16,7],[16,8,16,10],[16,11,16,14],[13,1,13,4],[13,6,13,7],[13,8,13,10],[13,11,13,14],[14,1,14,4],[14,6,14,7],[14,8,14,10],[14,11,14,14],[3,5,3,7],[3,12,3,14],[11,1,12,4],[11,5,12,5],[11,6,12,7],[11,8,12,10],[11,11,12,14]]}
[null,{"$f":"Info!B2","v":"Version Okt. 2021"}]
[null,"Förderungswerber",null,null,null,{"$f":"Daten!D5","v":0}]
[null,"Bauvorhaben",null,null,null,{"$f":"Daten!D8&\" BA \"&Daten!D10&\", \"&Daten!D9","v":"ABA BA , "}]
[null,"Gemeinde",null,null,null,"G22",null,null,null,null,null,"Gemeindekennzahl "]
[]
[null,"Nachweis Mindestgebühr Musterhaus Steiermark"]
[null,"(alle Beträge ohne Ust.)"]
[]
[null,"Zum Zeitpunkt des Antrages vom",null,null,null,null,{"$f":"Daten!D13","v":"00:00:00"}]
[null,"gültige Gebührenordnung vom"]
[]
[null,"Angaben zum Musterhaus",null,null,null,"Wert","Einheit",null,"Einheitssatz",null,null,"Gebühr"]
[]
[null,"3 Personen",null,null,null,3,"E",null,null,null,null,{"$f":"F14*I14","v":0}]
[null,"Wasserverbrauch von 120 Liter pro Person und Tag",null,null,null,131.5,"m³/a",null,null,null,null,0]
[null,"WC / Bäder",null,null,null,null,"Stk.",null,null,null,null,0]
[null,"Berechnungsfläche",null,null,null,270,"m²",null,null,null,null,0]
[null,"Regenwasserentsorgung",null,null,null,null,null,null,null,null,null,0]
[null,"Grundstücksfläche",null,null,null,600,"m²",null,null,null,null,0]
[null,"Grundgebühr bzw.\nBereitstellungsgebühr",null,null,null,null,null,null,null,null,null,0]
[null,"Anmerkungen zur Herleitung allfälliger Durchschnittssätze für Einheitssätze"]
[null,"Laufende Gebührenbelastung eines Musterhauses pro Jahr",null,null,null,null,null,null,null,null,null,{"$f":"SUM(L14:N20)","v":0}]
[null,"Gebühren eines Musterhauses pro m3",null,null,null,null,null,null,null,null,null,{"$f":"L22/F15","v":0}]

{"sheet":"G23","index":25,"n_rows":23,"n_cols":12,"rows_kept":23,"cut":false,"hidden":false,"merged":[[21,1,21,10],[21,11,21,14],[22,1,22,10],[22,11,22,14],[23,11,23,14],[19,1,19,4],[19,6,19,7],[19,8,19,10],[19,11,19,14],[20,1,20,4],[20,5,20,14],[17,1,17,4],[17,6,17,7],[17,8,17,10],[17,11,17,14],[18,1,18,4],[18,6,18,7],[18,8,18,10],[18,11,18,14],[15,1,15,4],[15,6,15,7],[15,8,15,10],[15,11,15,14],[16,1,16,4],[16,6,16,7],[16,8,16,10],[16,11,16,14],[13,1,13,4],[13,6,13,7],[13,8,13,10],[13,11,13,14],[14,1,14,4],[14,6,14,7],[14,8,14,10],[14,11,14,14],[3,5,3,7],[3,12,3,14],[11,1,12,4],[11,5,12,5],[11,6,12,7],[11,8,12,10],[11,11,12,14]]}
[null,{"$f":"Info!B2","v":"Version Okt. 2021"}]
[null,"Förderungswerber",null,null,null,{"$f":"Daten!D5","v":0}]
[null,"Bauvorhaben",null,null,null,{"$f":"Daten!D8&\" BA \"&Daten!D10&\", \"&Daten!D9","v":"ABA BA , "}]
[null,"Gemeinde",null,null,null,"G23",null,null,null,null,null,"Gemeindekennzahl "]
[]
[null,"Nachweis Mindestgebühr Musterhaus Steiermark"]
[null,"(alle Beträge ohne Ust.)"]
[]
[null,"Zum Zeitpunkt des Antrages vom",null,null,null,null,{"$f":"Daten!D13","v":"00:00:00"}]
[null,"gültige Gebührenordnung vom"]
[]
[null,"Angaben zum Musterhaus",null,null,null,"Wert","Einheit",null,"Einheitssatz",null,null,"Gebühr"]
[]
[null,"3 Personen",null,null,null,3,"E",null,null,null,null,{"$f":"F14*I14","v":0}]
[null,"Wasserverbrauch von 120 Liter pro Person und Tag",null,null,null,131.5,"m³/a",null,null,null,null,0]
[null,"WC / Bäder",null,null,null,null,"Stk.",null,null,null,null,0]
[null,"Berechnungsfläche",null,null,null,270,"m²",null,null,null,null,0]
[null,"Regenwasserentsorgung",null,null,null,null,null,null,null,null,null,0]
[null,"Grundstücksfläche",null,null,null,600,"m²",null,null,null,null,0]
[null,"Grundgebühr bzw.\nBereitstellungsgebühr",null,null,null,null,null,null,null,null,null,0]
[null,"Anmerkungen zur Herleitung allfälliger Durchschnittssätze für Einheitssätze"]
[null,"Laufende Gebührenbelastung eines Musterhauses pro Jahr",null,null,null,null,null,null,null,null,null,{"$f":"SUM(L14:N20)","v":0}]
[null,"Gebühren eines Musterhauses pro m3",null,null,null,null,null,null,null,null,null,{"$f":"L22/F15","v":0}]

{"sheet":"G24","index":26,"n_rows":23,"n_cols":12,"rows_kept":23,"cut":false,"hidden":false,"merged":[[21,1,21,10],[21,11,21,14],[22,1,22,10],[22,11,22,14],[23,11,23,14],[19,1,19,4],[19,6,19,7],[19,8,19,10],[19,11,19,14],[20,1,20,4],[20,5,20,14],[17,1,17,4],[17,6,17,7],[17,8,17,10],[17,11,17,14],[18,1,18,4],[18,6,18,7],[18,8,18,10],[18,11,18,14],[15,1,15,4],[15,6,15,7],[15,8,15,10],[15,11,15,14],[16,1,16,4],[16,6,16,7],[16,8,16,10],[16,11,16,14],[13,1,13,4],[13,6,13,7],[13,8,13,10],[13,11,13,14],[14,1,14,4],[14,6,14,7],[14,8,14,10],[14,11,14,14],[3,5,3,7],[3,12,3,14],[11,1,12,4],[11,5,12,5],[11,6,12,7],[11,8,12,10],[11,11,12,14]]}
[null,{"$f":"Info!B2","v":"Version Okt. 2021"}]
[null,"Förderungswerber",null,null,null,{"$f":"Daten!D5","v":0}]
[null,"Bauvorhaben",null,null,null,{"$f":"Daten!D8&\" BA \"&Daten!D10&\", \"&Daten!D9","v":"ABA BA , "}]
[null,"Gemeinde",null,null,null,"G24",null,null,null,null,null,"Gemeindekennzahl "]
[]
[null,"Nachweis Mindestgebühr Musterhaus Steiermark"]
[null,"(alle Beträge ohne Ust.)"]
[]
[null,"Zum Zeitpunkt des Antrages vom",null,null,null,null,{"$f":"Daten!D13","v":"00:00:00"}]
[null,"gültige Gebührenordnung vom"]
[]
[null,"Angaben zum Musterhaus",null,null,null,"Wert","Einheit",null,"Einheitssatz",null,null,"Gebühr"]
[]
[null,"3 Personen",null,null,null,3,"E",null,null,null,null,{"$f":"F14*I14","v":0}]
[null,"Wasserverbrauch von 120 Liter pro Person und Tag",null,null,null,131.5,"m³/a",null,null,null,null,0]
[null,"WC / Bäder",null,null,null,null,"Stk.",null,null,null,null,0]
[null,"Berechnungsfläche",null,null,null,270,"m²",null,null,null,null,0]
[null,"Regenwasserentsorgung",null,null,null,null,null,null,null,null,null,0]
[null,"Grundstücksfläche",null,null,null,600,"m²",null,null,null,null,0]
[null,"Grundgebühr bzw.\nBereitstellungsgebühr",null,null,null,null,null,null,null,null,null,0]
[null,"Anmerkungen zur Herleitung allfälliger Durchschnittssätze für Einheitssätze"]
[null,"Laufende Gebührenbelastung eines Musterhauses pro Jahr",null,null,null,null,null,null,null,null,null,{"$f":"SUM(L14:N20)","v":0}]
[null,"Gebühren eines Musterhauses pro m3",null,null,null,null,null,null,null,null,null,{"$f":"L22/F15","v":0}]

{"sheet":"G25","index":27,"n_rows":23,"n_cols":12,"rows_kept":23,"cut":false,"hidden":false,"merged":[[21,1,21,10],[21,11,21,14],[22,1,22,10],[22,11,22,14],[23,11,23,14],[19,1,19,4],[19,6,19,7],[19,8,19,10],[19,11,19,14],[20,1,20,4],[20,5,20,14],[17,1,17,4],[17,6,17,7],[17,8,17,10],[17,11,17,14],[18,1,18,4],[18,6,18,7],[18,8,18,10],[18,11,18,14],[15,1,15,4],[15,6,15,7],[15,8,15,10],[15,11,15,14],[16,1,16,4],[16,6,16,7],[16,8,16,10],[16,11,16,14],[13,1,13,4],[13,6,13,7],[13,8,13,10],[13,11,13,14],[14,1,14,4],[14,6,14,7],[14,8,14,10],[14,11,14,14],[3,5,3,7],[3,12,3,14],[11,1,12,4],[11,5,12,5],[11,6,12,7],[11,8,12,10],[11,11,12,14]]}
[null,{"$f":"Info!B2","v":"Version Okt. 2021"}]
[null,"Förderungswerber",null,null,null,{"$f":"Daten!D5","v":0}]
[null,"Bauvorhaben",null,null,null,{"$f":"Daten!D8&\" BA \"&Daten!D10&\", \"&Daten!D9","v":"ABA BA , "}]
[null,"Gemeinde",null,null,null,"G25",null,null,null,null,null,"Gemeindekennzahl "]
[]
[null,"Nachweis Mindestgebühr Musterhaus Steiermark"]
[null,"(alle Beträge ohne Ust.)"]
[]
[null,"Zum Zeitpunkt des Antrages vom",null,null,null,null,{"$f":"Daten!D13","v":"00:00:00"}]
[null,"gültige Gebührenordnung vom"]
[]
[null,"Angaben zum Musterhaus",null,null,null,"Wert","Einheit",null,"Einheitssatz",null,null,"Gebühr"]
[]
[null,"3 Personen",null,null,null,3,"E",null,null,null,null,{"$f":"F14*I14","v":0}]
[null,"Wasserverbrauch von 120 Liter pro Person und Tag",null,null,null,131.5,"m³/a",null,null,null,null,0]
[null,"WC / Bäder",null,null,null,null,"Stk.",null,null,null,null,0]
[null,"Berechnungsfläche",null,null,null,270,"m²",null,null,null,null,0]
[null,"Regenwasserentsorgung",null,null,null,null,null,null,null,null,null,0]
[null,"Grundstücksfläche",null,null,null,600,"m²",null,null,null,null,0]
[null,"Grundgebühr bzw.\nBereitstellungsgebühr",null,null,null,null,null,null,null,null,null,0]
[null,"Anmerkungen zur Herleitung allfälliger Durchschnittssätze für Einheitssätze"]
[null,"Laufende Gebührenbelastung eines Musterhauses pro Jahr",null,null,null,null,null,null,null,null,null,{"$f":"SUM(L14:N20)","v":0}]
[null,"Gebühren eines Musterhauses pro m3",null,null,null,null,null,null,null,null,null,{"$f":"L22/F15","v":0}]